Cogmind - Beta 9.4 @@@ ROGUE MODE // 2020.03.27 @ 00:56:55 Player: Dhoby_Ghaut Result: Self-destructed Performance ------------- Evolutions (2) 1000 Regions Visited (7) 1400 Robots Destroyed (68) 340 Value Destroyed (1937) 1937 Prototype IDs (2) 40 Alien Tech Used (0) 0 Bonus (0) 0 TOTAL SCORE: 4717 Bonus ------- None Cogmind --------- Core Integrity 492/550 Matter 294/300 Energy 160/160 System Corruption 0% Temperature Cool (362) Movement Rolling (150) Ox5 Location -8/Materials Parts ------- > --- POWER (1) -------- Light Nuclear Core > --- PROPULSION (3) --- Compact Wheel > --- UTILITY (5) ------ High-capacity Storage Unit High-capacity Storage Unit Hardened Medium Armor Plating Hardened Medium Armor Plating > --- WEAPON (2) ------- Minigun Minigun > --- INVENTORY (20) --- Carbon-fiber Leg Heat Sink Large Storage Unit Large Storage Unit Compact Battery (300) Hardened Light Armor Plating Hardened Light Armor Plating Hardened Medium Armor Plating Insulated Plating Peak State ------------ > --- POWER ------------ Light Nuclear Core > --- PROPULSION ------- Compact Wheel Compact Wheel > --- UTILITY ---------- High-capacity Storage Unit High-capacity Storage Unit Hardened Medium Armor Plating Hardened Medium Armor Plating Insulated Plating > --- WEAPON ----------- Minigun Minigun > --- INVENTORY -------- Carbon-fiber Leg Heat Sink Large Storage Unit Large Storage Unit Compact Battery Hardened Light Armor Plating Hardened Light Armor Plating Hardened Medium Armor Plating Insulated Plating Minigun [Rating: 24] Favorites ----------- Power Ion Engine Engine Ion Engine Power Core Light Nuclear Core Propulsion Aluminum Leg Leg Aluminum Leg Wheel Compact Wheel Utility Large Storage Unit Device Cooling System Storage Large Storage Unit Protection Light Armor Plating Weapon Minigun Energy Gun EM Shotgun Ballistic Gun Minigun Launcher Grenade Launcher Build | -11 -10 -10 -9 -9 -9 -8 -8 ------- Run | Scr Mat Min Mat Min Exi Min Mat Slots Evolved 4 | . . . 2 . . . 2 Power . | . . . . . . . . Propulsion 1 | . . . . . . . 1 Utility 3 | . . . 2 . . . 1 Weapon . | . . . . . . . . Parts Attached 72 | 6 15 2 21 11 2 8 7 Power 8 | 1 2 . 2 1 . 1 1 Engine 7 | 1 2 . 2 1 . 1 . Core 1 | . . . . . . . 1 Reactor . | . . . . . . . . Propulsion 22 | 2 5 . 6 4 . 5 . Treads . | . . . . . . . . Leg 18 | . 5 . 6 4 . 3 . Wheel 4 | 2 . . . . . 2 . Hover . | . . . . . . . . Flight . | . . . . . . . . Utility 20 | 1 2 1 7 2 2 1 4 Device 5 | . 2 1 2 . . . . Storage 5 | 1 . . 2 . 2 . . Processor . | . . . . . . . . Hackware . | . . . . . . . . Protection 10 | . . . 3 2 . 1 4 Artifact . | . . . . . . . . Weapon 22 | 2 6 1 6 4 . 1 2 Energy Gun 11 | 2 5 1 3 . . . . Energy Cannon . | . . . . . . . . Ballistic Gun 8 | . 1 . 2 2 . 1 2 Ballistic Cannon . | . . . . . . . . Launcher 3 | . . . 1 2 . . . Special Weapon . | . . . . . . . . Impact Weapon . | . . . . . . . . Slashing Weapon . | . . . . . . . . Piercing Weapon . | . . . . . . . . Special Melee Weapon . | . . . . . . . . Unidentified Prototypes . | . . . . . . . . Parts Lost 21 | . 4 2 5 3 . 3 4 Power 2 | . . . . . . 1 1 Propulsion 2 | . . . 1 . . . 1 Utility 5 | . . 1 . 2 . 1 1 Weapon 12 | . 4 1 4 1 . 1 1 Highest Loss Streak 3 | . 2 1 3 2 . 3 3 Average Slot Usage (%) 98 | . 96 98 98 100 100 97 87 Engine 11 | . 14 14 11 11 11 10 5 Leg 20 | . 20 28 21 22 22 11 . Wheel 2 | . 7 . . . . 11 16 Device 8 | . 12 12 12 8 . . . Storage 19 | . 14 14 20 22 22 22 18 Protection 12 | . . . 11 13 22 21 26 Energy Gun 7 | . 21 28 18 . . . . Ballistic Gun 14 | . 5 . 3 21 22 21 18 Naked Turns . | . . . . . . . . Heaviest Build 94 | 13 16 16 50 49 81 83 94 Greatest Support 32 | 26 26 20 20 20 20 25 32 Greatest Overweight (x) 5 | . 1 . 4 2 4 5 5 Average Overweight (x) 1 | . . . 1 2 2 4 2 Largest Inventory Capacity 20 | 6 6 6 16 16 20 20 20 Average Capacity 14 | 5 6 6 14 16 16 20 20 Most Carried 17 | 4 6 6 16 16 17 17 12 Average Carried 12 | 2 4 5 12 15 15 12 9 Final Capacity 20 | 6 6 6 16 16 20 20 20 Final Carried 17 | 4 6 6 15 15 17 8 9 Class Distribution -------------------- 44% | Mutant 41% | Scavenger-Mutant 13% | Hauler-Mutant Dominant Class ---------------- Scavenger-Mutant | -10/Materials Scavenger-Mutant | -10/Mines Mutant | -9/Materials Scavenger-Mutant | -9/Mines Mutant | -9/Exiles Hauler-Mutant | -8/Mines Hauler-Mutant | -8/Materials Resources | -11 -10 -10 -9 -9 -9 -8 -8 ----------- Run | Scr Mat Min Mat Min Exi Min Mat Matter Collected 1736 | 249 213 10 286 523 73 149 233 Remotely . | . . . . . . . . Salvage Created 2600 | . 530 182 596 925 . 174 193 Parts 142 | . 23 10 38 56 . 6 9 Haulers Intercepted 1 | . 1 . . . . . . Recyclers Shooed 2 | . 1 . . . . 1 . Parts Field Recycled . | . . . . . . . . Retrieved Matter . | . . . . . . . . Parts Self-Destructed . | . . . . . . . . Prevented . | . . . . . . . . Kills | -11 -10 -10 -9 -9 -9 -8 -8 ------- Run | Scr Mat Min Mat Min Exi Min Mat Combat Hostiles Destroyed 56 | . 9 4 16 23 . 1 3 Guns 50 | . 9 2 13 22 . 1 3 AOE 5 | . . 1 3 1 . . . Classes Destroyed 11 | . 3 . 5 2 . 1 . Worker 2 | . . . 1 . . . 1 Builder 1 | . . . 1 . . . . Tunneler 4 | . . . . 4 . . . Hauler 1 | . 1 . . . . . . Recycler 4 | . 1 . 1 . . 2 . Swarmer 5 | . . . 5 . . . . Grunt 44 | . 9 4 9 21 . . 1 Duelist 2 | . . . 1 . . . 1 Sentry 2 | . . . 1 . . . 1 Hunter 1 | . . . . . . 1 . Assembled 2 | . . . . 2 . . . Best Kill Streak 7 | . 2 2 6 7 . 1 2 Combat Bots Only 5 | . 2 2 5 4 . 1 2 Max Kills in Single Turn 3 | . 1 1 2 3 . 1 1 Gunslinging 1 | . . . 1 . . . . Exploded 1 | . . 1 1 1 . . . Melee . | . . . . . . . . Uniques/NPCs Destroyed . | . . . . . . . . Combat | -11 -10 -10 -9 -9 -9 -8 -8 -------- Run | Scr Mat Min Mat Min Exi Min Mat Damage Taken 3076 | . 581 221 659 701 . 184 730 Core 359 | . 80 25 108 67 . 21 58 Absorbed by Shields . | . . . . . . . . Core Remaining (%) 69 | 100 . 58 . . . 51 . Volleys Fired 183 | . 48 7 38 57 . 11 22 Largest 2 | . 2 2 2 2 . 2 2 Hottest 100 | . 100 90 90 55 . 50 50 Shots Fired 357 | . 92 14 76 113 . 20 42 Gun 348 | . 92 14 73 107 . 20 42 Cannon . | . . . . . . . . Launcher 9 | . . . 3 6 . . . Special . | . . . . . . . . Kinetic 209 | . 24 . 16 107 . 20 42 Thermal 38 | . 38 . . . . . . Explosive 9 | . . . 3 6 . . . Electromagnetic 101 | . 30 14 57 . . . . Robot Hit Streak 21 | . 9 20 21 16 . 6 10 Robot Miss Streak 6 | . 6 2 5 3 . 1 2 Penetration Max . | . . . . . . . . Secondary Targets 6 | . 1 . 1 2 . . 2 Max Gunslinging Chain 1 | . 1 . 1 1 . . 1 Shots Hit Robots 243 | . 65 13 52 67 . 15 31 Core Hits 115 | . 25 9 32 34 . 7 8 Critical Hits 1 | . . . . 1 . . . Critical Kills . | . . . . . . . . Critical Parts Destroyed 1 | . . . . 1 . . . Melee Attacks . | . . . . . . . . Impact . | . . . . . . . . Slashing . | . . . . . . . . Piercing . | . . . . . . . . Sneak Attacks . | . . . . . . . . Combat Hostiles . | . . . . . . . . Follow-up Attacks . | . . . . . . . . Damage Inflicted 3995 | . 736 294 874 1383 . 180 528 Guns 3429 | . 736 201 594 1190 . 180 528 Cannons . | . . . . . . . . Explosions 566 | . . 93 280 193 . . . Melee . | . . . . . . . . Ramming . | . . . . . . . . Kinetic 2215 | . 152 . 165 1190 . 180 528 Thermal 542 | . 299 93 150 . . . . Explosive 323 | . . . 130 193 . . . Electromagnetic 915 | . 285 201 429 . . . . Impact . | . . . . . . . . Slashing . | . . . . . . . . Piercing . | . . . . . . . . Highest Corruption . | . . . . . . . . Average Corruption . | . . . . . . . . Corruption Purged . | . . . . . . . . Overload Shots . | . . . . . . . . Overflow Damage 48 | . . 2 46 . . . . Projectiles . | . . . . . . . . Explosions 48 | . . 2 46 . . . . Melee . | . . . . . . . . Knockbacks . | . . . . . . . . Impact . | . . . . . . . . Kinetic . | . . . . . . . . Secondary . | . . . . . . . . Self-Inflicted Damage 121 | . . 55 . 66 . . . Shots 4 | . . 1 . 3 . . . Rammed . | . . . . . . . . Targets Rammed . | . . . . . . . . Kicked . | . . . . . . . . Crushed . | . . . . . . . . Highest Temperature 480 | . 291 88 12 94 . 66 480 Average Temperature 129 | . 129 28 9 39 . 24 262 Received Heat Transfer 1194 | . 315 78 204 309 . . 288 Effects 12 | . 1 . . . . . 11 Shutdowns 1 | . . . . . . . 1 Energy Bleed 1 | . . . . . . . 1 Interference 2 | . 1 . . . . . 1 Short Circuit 1 | . . . . . . . 1 Damage (major) 7 | . . . . . . . 7 Siege Activations . | . . . . . . . . Robots Corrupted 1 | . . 1 . . . . . Combat Hostiles 1 | . . 1 . . . . . Parts Fried 3 | . 2 . 1 . . . . Impact Corruptions . | . . . . . . . . Robots Melted . | . . . . . . . . Combat Hostiles . | . . . . . . . . Parts Melted 3 | . 2 . 1 . . . . Heat Transferred 1132 | . 782 100 250 . . . . Parts Sabotaged . | . . . . . . . . Parts Stolen . | . . . . . . . . Parts Stripped . | . . . . . . . . Power Chain Reactions 3 | . . 1 2 . . . . Missiles Intercepted . | . . . . . . . . Alert | -11 -10 -10 -9 -9 -9 -8 -8 ------- Run | Scr Mat Min Mat Min Exi Min Mat Peak Influence 300 | . 120 96 289 300 . 40 90 Average Influence 67 | . 34 48 93 80 . 33 38 Maximum Alert Level 1 | . . . 1 1 . . . Low Security (%) 92 | 100 100 100 89 88 . 100 100 Level 1 7 | . . . 10 11 . . . Level 2 . | . . . . . . . . Level 3 . | . . . . . . . . Level 4 . | . . . . . . . . Level 5 . | . . . . . . . . High Security . | . . . . . . . . Max Security . | . . . . . . . . Squads Dispatched 5 | . 3 . 1 . . . 1 Investigation 2 | . 2 . . . . . . Extermination . | . . . . . . . . Reinforcement 3 | . 1 . 1 . . . 1 Assault . | . . . . . . . . Garrison . | . . . . . . . . Intercept . | . . . . . . . . Construction Impeded . | . . . . . . . . Haulers Reinforced . | . . . . . . . . Stealth | -11 -10 -10 -9 -9 -9 -8 -8 --------- Run | Scr Mat Min Mat Min Exi Min Mat Distress Signals 7 | . 2 . 3 . . . 2 Communications Jammed . | . . . . . . . . Distress Signals . | . . . . . . . . Times Spotted 86 | . 20 6 22 24 . 1 13 Peak Tracking Total 10 | . 4 2 5 4 . 1 10 Tactical Retreats 5 | . 1 . 3 1 . . . Traps | -11 -10 -10 -9 -9 -9 -8 -8 ------- Run | Scr Mat Min Mat Min Exi Min Mat Traps Triggered . | . . . . . . . . Indirectly . | . . . . . . . . Trap Hack Attempts . | . . . . . . . . Triggered . | . . . . . . . . Disarmed . | . . . . . . . . Reprogrammed . | . . . . . . . . Reused . | . . . . . . . . Traps Extracted . | . . . . . . . . Installed . | . . . . . . . . Triggered 1 | . . 1 . . . . . Machines | -11 -10 -10 -9 -9 -9 -8 -8 ---------- Run | Scr Mat Min Mat Min Exi Min Mat Machines Disabled . | . . . . . . . . Max in Single Turn . | . . . . . . . . Machines Sabotaged . | . . . . . . . . Garrisons Compromised . | . . . . . . . . Overloaded Fab Kills . | . . . . . . . . Fab Network Shutdowns . | . . . . . . . . Hacking | -11 -10 -10 -9 -9 -9 -8 -8 --------- Run | Scr Mat Min Mat Min Exi Min Mat Machines Accessed 8 | . 4 . 2 . 1 . 1 Terminals 7 | . 4 . 2 . . . 1 Fabricators . | . . . . . . . . Repair Stations . | . . . . . . . . Recycling Units . | . . . . . . . . Scanalyzers . | . . . . . . . . Garrison Access . | . . . . . . . . Total Hacks 28 | . 13 . 7 . 1 . 7 Successful 17 | . 5 . 6 . 1 . 5 Failed 11 | . 8 . 1 . . . 2 Catastrophic 1 | . 1 . . . . . . Database Lockouts . | . . . . . . . . Manual 16 | . 7 . 6 . . . 3 Terminals 27 | . 13 . 7 . . . 7 Fabricators . | . . . . . . . . Repair Stations . | . . . . . . . . Recycling Units . | . . . . . . . . Scanalyzers . | . . . . . . . . Garrison Access . | . . . . . . . . Terminal Hacks 11 | . 4 . 3 . 1 . 3 Record 1 | . . . . . 1 . . Prototype ID Bank 1 | . . . . . . . 1 Emergency Access Points 1 | . . . . . . . 1 Unreport Threat 2 | . 1 . 1 . . . . Locate Traps 4 | . 2 . 1 . . . 1 Zone Layout 2 | . 1 . 1 . . . . Fabricator Hacks . | . . . . . . . . Repair Station Hacks . | . . . . . . . . Recycling Unit Hacks . | . . . . . . . . Scanalyzer . | . . . . . . . . Garrison Access Hacks . | . . . . . . . . Unauthorized Hacks 14 | . 3 . 6 . . . 5 Terminals 6 | . 1 . 3 . . . 2 Track 4 | . 1 . 2 . . . 1 Botnet 2 | . . . 1 . . . 1 Fabricators . | . . . . . . . . Repair Stations . | . . . . . . . . Recycling Units . | . . . . . . . . Scanalyzers . | . . . . . . . . Garrison Access . | . . . . . . . . Data Cores Recovered . | . . . . . . . . Used . | . . . . . . . . Hacking Detections 6 | . 4 . 2 . . . . Full Trace Events 2 | . 2 . . . . . . Feedback Events . | . . . . . . . . Feedback Blocked . | . . . . . . . . Robot Schematics Acquired . | . . . . . . . . Robots Built . | . . . . . . . . Matter . | . . . . . . . . Time . | . . . . . . . . Total Robot Build Rating . | . . . . . . . . Part Schematics Acquired . | . . . . . . . . Parts Built . | . . . . . . . . Matter . | . . . . . . . . Time . | . . . . . . . . Total Part Build Rating . | . . . . . . . . Parts Repaired . | . . . . . . . . Time . | . . . . . . . . Parts Recycled . | . . . . . . . . Recycled Matter . | . . . . . . . . Retrieved Matter . | . . . . . . . . Retrieved Components . | . . . . . . . . Parts Scanalyzed . | . . . . . . . . Part Schematics Acquired . | . . . . . . . . Parts Damaged . | . . . . . . . . Bothacking | -11 -10 -10 -9 -9 -9 -8 -8 ------------ Run | Scr Mat Min Mat Min Exi Min Mat Used RIF Installer . | . . . . . . . . Robots Hacked . | . . . . . . . . Non-combat . | . . . . . . . . Combat . | . . . . . . . . Robot Hacks Applied . | . . . . . . . . Relay Couplers Released . | . . . . . . . . Robots Rewired . | . . . . . . . . Allies Hacked . | . . . . . . . . Hacks Repelled . | . . . . . . . . Allies | -11 -10 -10 -9 -9 -9 -8 -8 -------- Run | Scr Mat Min Mat Min Exi Min Mat Total Allies . | . . . . . . . . Largest Group . | . . . . . . . . Highest-Rated Group . | . . . . . . . . Highest-Rated Ally . | . . . . . . . . Total Orders . | . . . . . . . . Ally Attacks . | . . . . . . . . Total Damage . | . . . . . . . . Kills . | . . . . . . . . Allies Corrupted . | . . . . . . . . Allies Melted . | . . . . . . . . Intel | -11 -10 -10 -9 -9 -9 -8 -8 ------- Run | Scr Mat Min Mat Min Exi Min Mat Robot Analysis Total . | . . . . . . . . Derelict Logs Recovered 1 | . . . . 1 . . . Drone Launches . | . . . . . . . . Drone Recoveries . | . . . . . . . . Exploration | -11 -10 -10 -9 -9 -9 -8 -8 ------------- Run | Scr Mat Min Mat Min Exi Min Mat Turns Passed 3171 | 45 502 122 583 1213 360 154 192 Spaces Moved 1359 | 38 294 82 243 346 189 70 97 Core 4 | 4 . . . . . . . Treads . | . . . . . . . . Legs 1083 | . 213 82 243 346 189 10 . Wheels 272 | 34 81 . . . . 60 97 Hover . | . . . . . . . . Flight . | . . . . . . . . Fastest Speed 50 | 50 90 120 120 180 180 150 120 Average Speed 151 | 85 111 120 160 180 190 159 124 Slowest Speed 240 | 90 150 120 240 180 240 240 150 Overloaded Moves . | . . . . . . . . Propulsion Burnouts . | . . . . . . . . Robots Hopped . | . . . . . . . . Cave-ins Triggered . | . . . . . . . . Exploration Rate (%) 29 | 4 58 32 22 41 55 14 9 Regions Visited 7 Branch Regions 4 Pre-discovered Areas 1 | . . . . . 1 . . Known Exits Taken . | . . . . . . . . Unknown Exits Taken 7 | 1 1 1 1 1 1 1 . Scrap Searched 1 | . . 1 . . . . . Spaces Dug 16 | . . . . 16 . . . Terrain Destroyed 73 | . . 6 29 38 . . . Melee . | . . . . . . . . Projectile 1 | . . . . 1 . . . AOE 72 | . . 6 29 37 . . . Actions | -11 -10 -10 -9 -9 -9 -8 -8 --------- Run | Scr Mat Min Mat Min Exi Min Mat Total 2139 | 47 375 91 360 842 190 101 133 Wait 480 | . 6 . 43 426 . . 5 Move 1352 | 37 293 81 242 345 188 69 97 Hop . | . . . . . . . . Pick Up 19 | 4 2 1 10 1 . . 1 Fast Attach 19 | 6 7 1 2 . . 2 1 Attach 18 | . 1 1 6 3 . 5 2 Detach 7 | . 2 . 1 . . 4 . Swap 35 | . 7 . 13 8 2 1 4 Drop 26 | . 9 . 5 2 . 9 1 Fire 183 | . 48 7 38 57 . 11 22 Melee . | . . . . . . . . Ram . | . . . . . . . . Kick . | . . . . . . . . Crush . | . . . . . . . . Escape Stasis . | . . . . . . . . Rewire . | . . . . . . . . Trap . | . . . . . . . . Miscellaneous . | . . . . . . . . Route ------- -11/Scrapyard -10/Materials (discovered 2 exits: *Mat / [*Min]) -10/Mines -9/Materials -9/Mines -9/Exiles -8/Mines -8/Materials (discovered 1 exit: Fac) History --------- Turn | Location | Event 21 | -11/Scrapyard | Discovered new exit (range 15) 46 | -11/Scrapyard | Entered Materials 187 | -10/Materials | Discovered new exit (range 4) 322 | -10/Materials | Discovered new exit (range 10) 491 | -10/Materials | Build established: Scavenger-Mutant 548 | -10/Materials | Entered Mines 662 | -10/Mines | Discovered new exit (range 6) 670 | -10/Mines | Entered Materials 670 | -9/Materials | Evolved 2 slots: Utility x2 1076 | -9/Materials | Build established: Mutant 1199 | -9/Materials | Lost 3 parts (3w) 1229 | -9/Materials | Discovered new exit (range 12) 1253 | -9/Materials | Entered Mines 1318 | -9/Mines | Met a Derelict bent on vengeance 1339 | -9/Mines | Excavation squad dispatched 1339 | -9/Mines | A large section of the Mines collapsed 1453 | -9/Mines | Build established: Scavenger-Mutant 1589 | -9/Mines | Excavation squad dispatched 1839 | -9/Mines | Excavation squad dispatched 2089 | -9/Mines | Excavation squad dispatched 2179 | -9/Mines | Build established: Mutant 2339 | -9/Mines | Excavation squad dispatched 2403 | -9/Mines | Learned 4 Materials zone layouts 2458 | -9/Mines | Deemed a non-threat by the Exiles lab entrance 2458 | -9/Mines | Discovered new exit (range 5) 2466 | -9/Mines | Entered Exiles 2511 | -9/Exiles | Met 8R-AWN 2551 | -9/Exiles | Met EX-HEX 2639 | -9/Exiles | Met EX-DEC 2684 | -9/Exiles | Learned location of Zion (-6) 2802 | -9/Exiles | Discovered new exit (range 11) 2826 | -9/Exiles | Entered Mines 2860 | -8/Mines | Lost 3 parts (1p1u1w) 2881 | -8/Mines | Discovered new exit (range 6) 2980 | -8/Mines | Entered Materials 2980 | -8/Materials | Evolved 2 slots: Propulsion x1, Utility x1 2981 | -8/Materials | Identified exit to Factory 3053 | -8/Materials | Build established: Hauler-Mutant 3164 | -8/Materials | Lost 3 parts (1p1n1w) 3172 | -8/Materials | Self-destructed Last Messages --------------- 03143_ Destroyed Beam Rifle. 03145_ Power failure, Lgt. Nuclear Core shutdown. 03148_ Overheating: Lgt. Nuclear Core damaged (-15). 03148_ Overheating: Com. Wheel damaged (-20). 03148_ Overheating: Hrd. Medium Armor Plating damaged (-25). 03148_ Overheating: Hcp. Storage Unit damaged (-160). 03148_ Y-45 Defender destroyed. 03148_ Switching to secondary target: G-47 Trooper. 03151_ Acquired 54 matter. 03156_ Overheating: Hrd. Medium Armor Plating damaged (-34). 03156_ Overheating: Minigun damaged (-40). 03156_ Overheating: Hcp. Storage Unit damaged (-245). 03161_ W-25 Informer sends out distress signal. 03161_ R-06 Scavenger collects Sml. Matter Pod. 03161_ W-25 Informer sends out distress signal. 03164_ Overheating: Short circuit. 03164_ Broken Minigun permanently disabled. 03167_ Acquired 58 matter. 03169_ Insulated Plating destroyed. 03170_ Acquired 2 matter. Map ----- +----------------------------------------------------+ | ??????????????????????????????????????????????? | | ??????????????????????????????????????????????? | | ??????????????????????????????????????????????? | | ??????????????????????????????????????????????? | | ??????????????????????????????????????????????? | | ??????????????????????????????????????????????? | | ??????????????????????????????????????????????? | | ??????????????????????????????????????????????? | | ??????????????????????????????????????????????? | | ??????????????????????????????????????????????? | | ??????????????????????????????????????????????? | | ??????????????????????????????????????????????? | | ?????????????????????? # #?# #?# # """ # | | ?????????????????????? + #?# ### # """ # | | ?????????????????????? # #?# # """ # | | ?????????????????????? ## ### + # | | ?????????????????????? ## ######+#+# """ # | | ?????????????????????? ## ##?# # """ # | | ?????????????????????? ## #??# T # """ # | | ??????????????????????+########### # # | | ????????????????????? # ## % # # | | ????????????????#???""""" # """ ## ####### | | ????????????????# """"""" # """ ## """ #?????? | | ????????????????# """"""" # """ ## """ #?????? | | ????????????????# """"""" # ## """ #?????? | | ??????+?????????+ """""""@###+#### #?????? | | ????????????????# =*g[= + """ #?????? | | ????????????????# * [ ss!*#= ### """ #?????? | | ????????##############/####* #?# """ #?????? | | ???????? ^^^ u w s #?# #?????? | | ???????? a ^^ u #?# ######?????? | | ???????u ^"" r #?###??????????? | | ?????????##### "T % ! #######??????????????? | | ?????????????# "" w ! #????????????????????? | | ?????????????# !! #????????????????????? | | ?????????????# ########?????????????? | | ?????????????# #?????????????? | | #??#######???# ### #?????????????? | | #### / #???# #?# #?????????????? | | ######g#### #?????????????? | | T + =%!g # #?????????????? | | go !## """g ##############?????????????? | | # ## """ #??????????????????????????? | | " ######## """ #??????????????????????????? | | " ###????# #??????????????????????????? | | " ""#????# """ #??????????????????????????? | | Y"#????# """ #??????????????????????????? | | " ""#????# """ #??????????????????????????? | | " ###????# #??????????????????????????? | | " #??????##########??????????????????????????? | +----------------------------------------------------+ Best States ------------- Heat Dissipation 50 Energy Generation 14 Energy Capacity 250 Matter Stores 300 Matter Capacity 300 Sight Range 16 Terrain Scan Density 10 Armor Coverage 600 Resistance: EM 15 Evasion (%) 42 Item Schematics ----------------- None Robot Schematics ------------------ None Fabricated ------------ Nothing Alien Tech Used ----------------- None Achievements -------------- None Challenges ------------ None Game ------ Seed SlugTeslaRegulator Manual? 0 Play Time 00:25:38 Cumulative 59.5 hours Start 2020.03.26 @ 18:39:09 End 2020.03.27 @ 00:56:55 Sessions 5 Manual Loads 0 Difficulty Rogue Special Mode None Game No. 52 Rogue 52 Adventurer 0 Explorer 0 Win Type - Total 7 Types 7/0/0/0/0/0/0 Lore% 67 Gallery% 65 Achievement% 51 Wizard Run 0 Options --------- ASCII 0 Keyboard 0 Movement Vi Keybinds 0 Fullscreen 2 Font 18/SmallcapsGlow Map View 76x50 Tactical HUD 1 Map Filters NONE Filters NONE Steam 0 RUN: 9a33f7fa-054a-4476-8b7f-cb67c7c5144c